bitfinex-derivatives/quotes_BTCF0:USTF0_20250207
["timestamp","ask_amount","ask_price","bid_price","bid_amount"]
[1738931574787,0.14752,97900.0,97899.0,0.38714]
[1738931576176,0.14752,97900.0,97899.0,0.42799]
[1738931576376,0.102,97900.0,97899.0,0.42799]
[1738931578183,0.102,97900.0,97899.0,0.6322109]
[1738931579979,0.3062188,97900.0,97899.0,0.42799]
[1738931580181,0.102,97900.0,97899.0,0.6322109]
[1738931581379,0.102,97900.0,97899.0,0.42799]
[1738931581690,0.3062188,97900.0,97899.0,0.42799]
[1738931584693,0.3062188,97900.0,97899.0,0.45352]
[1738931588890,0.3062188,97900.0,97899.0,0.09272]
[1738931589092,0.2042376,97891.0,97890.0,0.00015328]
[1738931589292,0.5650376,97891.0,97890.0,0.00015328]
[1738931589496,0.6103176,97891.0,97890.0,0.00015328]
[1738931590399,0.6103176,97891.0,97890.0,0.00915328]
[1738931590801,0.6113176,97891.0,97890.0,0.01815328]
[1738931593201,0.5660376,97891.0,97890.0,0.01815328]
[1738931593402,0.6113176,97891.0,97890.0,0.01815328]
[1738931602307,0.6113176,97891.0,97889.0,0.01634]
[1738931602308,0.40708,97891.0,97889.0,8e-08]
[1738931602506,0.2042398,97890.0,97889.0,8e-08]
[1738931602707,0.40708,97891.0,97887.0,0.04086]
[1738931602902,0.2042439,97888.0,97887.0,0.04086]
[1738931603108,0.2042564,97882.0,97881.0,0.24251336]
[1738931603317,0.5650564,97882.0,97881.0,0.24251336]
[1738931604399,0.5660564,97882.0,97881.0,0.25151336]
[1738931604604,0.5670564,97882.0,97881.0,0.26051336]
[1738931606317,0.57700516,97882.0,97881.0,0.26051336]
[1738931606915,0.57700516,97882.0,97881.0,0.018]
[1738931609816,0.21620516,97882.0,97881.0,0.018]
[1738931615917,0.21620516,97882.0,97881.0,0.02617]
[1738931618313,0.2062564,97882.0,97881.0,0.02617]
[1738931618523,0.2515364,97882.0,97881.0,0.02617]
[1738931629722,0.2515364,97882.0,97881.0,0.03434]
[1738931637230,0.2515364,97882.0,97881.0,0.0752]
[1738931648331,0.2062564,97882.0,97881.0,0.0752]
[1738931648530,0.2515364,97882.0,97881.0,0.0752]
[1738931651837,0.2515364,97882.0,97881.0,0.25850473]
[1738931652335,0.04728,97882.0,97881.0,0.25850473]
[1738931652547,0.002,97882.0,97881.0,0.25850473]
[1738931652838,0.04728,97882.0,97881.0,0.46276333]
[1738931654943,0.04728,97882.0,97881.0,0.2794586]
[1738931658238,0.04728,97882.0,97881.0,0.28951457]
[1738931658743,0.002,97882.0,97881.0,0.28951457]
[1738931669346,0.2042546,97883.0,97882.0,0.2042534]
[1738931669545,0.2042546,97883.0,97882.0,0.5650534]
[1738931670648,0.2052546,97883.0,97882.0,0.5710534]
[1738931670953,0.2062546,97883.0,97882.0,0.6282534]
[1738931671848,0.2062546,97883.0,97882.0,0.2674534]
[1738931672052,0.2062546,97883.0,97882.0,0.9890534]
[1738931672353,0.2062546,97883.0,97882.0,1.23278642]
[1738931672942,0.2062546,97883.0,97882.0,1.02853302]
[1738931673854,0.2062546,97883.0,97882.0,0.66773302]
[1738931675646,0.2062546,97883.0,97882.0,0.424]
[1738931680955,0.2062546,97883.0,97882.0,0.0632]
[1738931686244,0.2514946,97883.0,97882.0,0.0632]
[1738931686445,0.04724,97883.0,97882.0,0.0632]
[1738931686647,0.04724,97883.0,97882.0,0.2674565]
[1738931690258,0.04724,97883.0,97882.0,0.0632]
[1738931690259,0.2514944,97883.0,97882.0,0.0632]
[1738931690455,0.2514944,97883.0,97882.0,0.30693302]
[1738931692763,0.2514944,97883.0,97882.0,0.0632]
[1738931693462,0.2514944,97883.0,97882.0,0.424]
[1738931700358,0.1,97900.0,97882.0,0.724]
[1738931700665,0.28541567,97920.0,97899.0,0.7216]
[1738931700666,0.06331567,97910.0,97899.0,0.7216]
[1738931700859,0.06331567,97910.0,97909.0,0.3608]
[1738931701060,0.04524,97910.0,97909.0,0.3608]
[1738931701759,0.25193134,97920.0,97909.0,0.3608]
[1738931701976,0.04524,97919.0,97909.0,0.36897]
[1738931702157,0.04524,97919.0,97909.0,0.41799]
[1738931702957,0.04524,97919.0,97912.0,0.2041938]
[1738931703660,0.04624,97919.0,97912.0,0.2041938]
[1738931704369,0.04524,97919.0,97912.0,0.2041938]
[1738931704671,0.04624,97919.0,97912.0,0.006]
[1738931705470,0.04624,97919.0,97912.0,0.009]
[1738931706868,0.04524,97918.0,97912.0,0.009]
[1738931707168,0.04524,97917.0,97912.0,0.009]
[1738931707361,0.001,97919.0,97912.0,0.009]
[1738931707562,0.2494216,97918.0,97912.0,0.009]
[1738931707869,0.04524,97918.0,97912.0,0.009]
[1738931708367,0.2494228,97918.0,97912.0,0.008]
[1738931708567,0.04524,97918.0,97912.0,0.008]
[1738931708773,0.2041871,97916.0,97912.0,0.008]
[1738931709563,0.04624,97918.0,97912.0,0.008]
[1738931709874,0.2041877,97915.0,97912.0,0.008]
[1738931710272,0.2041877,97915.0,97912.0,0.04285]
[1738931710466,0.001,97916.0,97912.0,0.04985]
[1738931710663,0.2041918,97913.0,97912.0,0.04985]
[1738931711074,0.2041918,97913.0,97912.0,0.04085]
[1738931711374,0.2041918,97913.0,97912.0,0.05285]
[1738931711874,0.2041918,97913.0,97912.0,0.05385]
[1738931712471,0.5649918,97913.0,97912.0,0.05385]
[1738931712672,0.204198,97910.0,97909.0,0.01634]
[1738931713963,0.205198,97910.0,97909.0,0.02534]
[1738931714568,0.001,97910.0,97909.0,0.02534]
[1738931714978,0.206198,97910.0,97909.0,0.03134]
[1738931716871,0.21634023,97910.0,97909.0,0.03134]
[1738931719771,0.01214223,97910.0,97909.0,0.03134]
[1738931720176,0.21634023,97910.0,97909.0,0.03134]
[1738931723575,0.01214223,97910.0,97909.0,0.03134]
[1738931724780,0.002,97910.0,97909.0,0.39214]
[1738931724987,0.002,97910.0,97909.0,0.5963401]
[1738931726983,0.002,97910.0,97909.0,0.39214]
[1738931729178,0.002,97910.0,97909.0,0.5963401]
[1738931729486,0.04524,97922.0,97919.0,0.2041786]
[1738931729782,0.04524,97922.0,97920.0,0.2041754]
[1738931730286,0.0506368,97929.0,97921.0,0.204175]
[1738931730483,0.00153249,97930.0,97927.0,0.5649608]
[1738931730682,0.00153249,97930.0,97927.0,0.3608]
[1738931730987,0.00153249,97930.0,97927.0,0.37712]
[1738931731785,0.00353249,97930.0,97927.0,0.37712]
[1738931731994,0.20769039,97930.0,97927.0,0.37712]
[1738931732182,0.20769039,97930.0,97927.0,0.41796]
[1738931732778,0.00353249,97930.0,97927.0,0.41796]
[1738931733483,0.00353249,97930.0,97928.0,0.2041603]
[1738931733779,0.00353249,97930.0,97927.0,0.41796]
[1738931734186,0.20768939,97930.0,97927.0,0.41796]
[1738931738082,0.00353249,97930.0,97927.0,0.41796]
[1738931739784,0.00353249,97930.0,97929.0,0.2041584]
[1738931741392,0.00153249,97930.0,97929.0,0.2449984]
[1738931741687,0.00353249,97930.0,97929.0,0.2479984]
[1738931742083,0.0428,97937.0,97929.0,0.04484]
[1738931742379,0.0428,97937.0,97936.0,0.5649438]
[1738931743594,0.0448,97937.0,97936.0,0.5649438]
[1738931743778,0.0448,97937.0,97936.0,0.3608]
[1738931744186,0.0428,97937.0,97936.0,0.3608]
[1738931744387,0.0448,97937.0,97936.0,0.3608]
[1738931744591,0.0448,97937.0,97936.0,0.5649438]
[1738931744789,0.0427,97942.0,97936.0,0.3608]
[1738931745096,0.0423,97951.0,97941.0,0.3608]
[1738931745288,0.0423,97951.0,97950.0,0.5649146]
[1738931746385,0.0401,97956.0,97950.0,0.5649146]
[1738931746386,0.0401,97956.0,97950.0,0.3608]
[1738931746585,0.0401,97956.0,97953.0,0.2041072]
[1738931746792,0.2442024,97956.0,97953.0,0.2041072]
[1738931747298,0.0401,97956.0,97953.0,0.2041072]
[1738931747788,0.0401,97956.0,97953.0,0.2051072]
[1738931747987,0.0411,97956.0,97953.0,0.2051072]
[1738931748187,0.2452027,97956.0,97953.0,0.001]
[1738931749800,0.0411,97956.0,97953.0,0.001]
[1738931751496,0.0411,97956.0,97954.0,0.2041063]
[1738931752883,0.00153198,97957.0,97953.0,0.04183]
[1738931753084,0.0411,97967.0,97965.0,0.2040828]
[1738931753294,0.0411,97967.0,97966.0,0.3608]
[1738931754694,0.0411,97967.0,97966.0,0.3618]
[1738931754695,0.0421,97967.0,97966.0,0.3618]
[1738931755693,0.2461792,97967.0,97966.0,0.3618]
[1738931756302,0.2461792,97967.0,97966.0,0.37812]
[1738931759399,0.09299913,97967.0,97966.0,0.37812]
[1738931760707,0.09299913,97967.0,97966.0,0.01732]
[1738931761893,0.09299913,97967.0,97966.0,0.05815]
[1738931762292,0.04552,97968.0,97966.0,0.05815]
[1738931762690,0.0402,97967.0,97966.0,0.05815]
[1738931763707,0.0402,97967.0,97966.0,0.30091472]
[1738931764207,0.0402,97967.0,97966.0,0.29991472]
[1738931764504,0.0402,97967.0,97966.0,0.30091472]
[1738931765703,0.0402,97967.0,97966.0,0.50499602]
[1738931766207,0.0402,97967.0,97966.0,0.2622313]
[1738931766999,0.0402,97967.0,97966.0,0.05815]
[1738931771403,0.0402,97967.0,97966.0,0.30126051]
[1738931773406,0.0402,97967.0,97966.0,0.05815]
[1738931775712,0.0402,97967.0,97966.0,0.2622313]
[1738931778308,0.0402,97967.0,97966.0,0.7288316]
[1738931778716,0.0406,97970.0,97969.0,0.2040751]
[1738931780016,0.0416,97970.0,97969.0,0.2050751]
[1738931780222,0.0416,97970.0,97969.0,0.7206554]
[1738931782415,0.0416,97970.0,97969.0,0.7288154]
[1738931785316,0.0416,97970.0,97969.0,0.2622151]
[1738931786616,0.1,98000.0,97969.0,0.35814]
[1738931786814,0.1,98000.0,97990.0,0.3608]
[1738931787024,0.22609478,98000.0,97990.0,0.3608]
[1738931787219,0.0436,97999.0,97990.0,0.3608]
[1738931787422,0.2040154,97998.0,97995.0,0.204019]
[1738931787626,0.0436,97999.0,97990.0,0.3608]
[1738931787928,0.2040213,97995.0,97990.0,0.3608]
[1738931788312,0.2040213,97995.0,97990.0,0.3638]
[1738931788924,0.2040236,97994.0,97990.0,0.3678]
[1738931789615,0.0436,97999.0,97990.0,0.3678]
[1738931789616,0.0436,97999.0,97990.0,0.40862]
[1738931789820,0.5658209,97995.0,97994.0,0.18231462]
[1738931790224,0.3618,97995.0,97990.0,0.29390616]
[1738931790422,0.2040292,97991.0,97990.0,0.29490616]
[1738931790625,0.2040292,97991.0,97990.0,0.28890616]
[1738931790824,0.2040292,97991.0,97990.0,0.16470616]
[1738931791026,0.2040292,97991.0,97990.0,0.09410616]
[1738931791530,0.2040438,97984.0,97983.0,0.30471643]
[1738931791726,0.5648438,97984.0,97983.0,0.30471643]
[1738931792123,0.2040459,97983.0,97979.0,0.04082]
[1738931792322,0.2040522,97980.0,97979.0,0.04082]
[1738931793030,0.40608,97982.0,97959.0,0.043]
[1738931793322,0.5648646,97974.0,97959.0,0.043]
[1738931794334,0.5648646,97974.0,97969.0,0.05714]
[1738931794522,0.5658646,97974.0,97973.0,0.00615312]
[1738931795635,0.5668646,97974.0,97973.0,0.00815312]
[1738931795822,0.5668646,97974.0,97973.0,0.01631312]
[1738931796632,0.56690551,97974.0,97973.0,0.01631312]
[1738931799233,0.20610551,97974.0,97973.0,0.01631312]
[1738931799434,0.56690551,97974.0,97973.0,0.01631312]
[1738931800428,0.56690551,97974.0,97973.0,0.02447312]
[1738931801128,0.61210551,97974.0,97973.0,0.02447312]
[1738931802126,0.0510173,97972.0,97950.0,0.57113023]
[1738931802321,0.3608,97958.0,97950.0,0.36845763]
[1738931802534,0.1632826,97951.0,97950.0,0.36701763]
[1738931803426,0.2493126,97951.0,97950.0,0.36701763]
[1738931804030,0.2583126,97951.0,97950.0,0.36801763]
[1738931805026,0.2673126,97951.0,97950.0,0.36901763]
[1738931805628,0.6101126,97951.0,97950.0,0.36701763]
[1738931805826,0.6121126,97951.0,97950.0,0.005]
[1738931806138,0.2041146,97950.0,97949.0,0.00816]
[1738931806322,0.3320146,97950.0,97949.0,0.00816]
[1738931808532,0.3340146,97950.0,97949.0,0.00916]
[1738931809926,0.2041209,97947.0,97946.0,0.04083]
[1738931810331,0.2041271,97944.0,97943.0,0.00093]
[1738931811831,0.2051271,97944.0,97943.0,0.00093]
[1738931812331,0.2061271,97944.0,97943.0,0.00093]
[1738931815343,0.002,97944.0,97942.0,0.00816]
[1738931815543,0.2041292,97943.0,97942.0,0.00816]
[1738931817443,0.2051292,97943.0,97942.0,0.00816]
[1738931819143,0.2061292,97943.0,97942.0,0.00816]
[1738931820645,0.2061292,97943.0,97942.0,0.04906]
[1738931822443,0.2513292,97943.0,97942.0,0.04906]
[1738931822749,0.2513292,97943.0,97942.0,0.08966]
[1738931826241,0.002,97943.0,97942.0,0.08966]
[1738931826445,0.0472,97943.0,97942.0,0.08966]
[1738931826841,0.2513292,97943.0,97942.0,0.08966]
[1738931830049,0.2061292,97943.0,97942.0,0.08966]
[1738931830253,0.2061292,97943.0,97942.0,0.6545913]
[1738931830254,0.002,97943.0,97942.0,0.6545913]
[1738931830448,0.0452,97946.0,97942.0,0.45046]
[1738931831056,0.204119,97948.0,97942.0,0.45046]
[1738931831250,0.0452,97947.0,97942.0,0.4913]
[1738931831845,0.002,97946.0,97942.0,0.4913]
[1738931832052,0.002,97946.0,97942.0,0.6954312]
[1738931832246,0.0472,97946.0,97942.0,0.6954312]
[1738931832446,0.0472,97946.0,97943.0,0.77076933]
[1738931833547,0.0452,97946.0,97943.0,0.77076933]
[1738931834150,0.2041271,97944.0,97943.0,0.77276933]
[1738931834352,0.0472,97946.0,97943.0,0.77476933]
[1738931834557,0.0462,97946.0,97943.0,0.77276933]
[1738931834757,0.2513248,97946.0,97943.0,0.77476933]
[1738931835059,0.2513248,97946.0,97943.0,0.004]
[1738931835258,0.001,97944.0,97943.0,0.004]
[1738931836451,0.001,97944.0,97943.0,0.01216]
[1738931836653,0.001,97944.0,97943.0,0.01016]
[1738931836958,0.2513248,97946.0,97943.0,0.01016]
[1738931837163,0.2041271,97944.0,97943.0,0.01016]
[1738931837354,0.2041271,97944.0,97943.0,0.00916]
[1738931837560,0.2061271,97944.0,97943.0,0.01016]
[1738931837955,0.2051271,97944.0,97943.0,0.00916]
[1738931838158,0.2051271,97944.0,97943.0,0.01016]
[1738931838758,0.2061271,97944.0,97943.0,0.01016]
[1738931840165,0.2051271,97944.0,97943.0,0.00916]
[1738931840355,0.2061271,97944.0,97943.0,0.01016]
[1738931841463,0.002,97944.0,97943.0,0.051]
[1738931841662,0.002,97944.0,97943.0,0.05]
[1738931841864,0.002,97944.0,97943.0,0.051]
[1738931843863,0.0472,97944.0,97943.0,0.051]
[1738931848674,0.0472,97944.0,97943.0,0.2551292]
[1738931849474,0.002,97944.0,97943.0,0.2551292]
[1738931849872,0.0452,97948.0,97943.0,0.051]
[1738931850077,0.0452,97948.0,97944.0,0.0389]
[1738931850576,0.0452,97953.0,97944.0,0.0389]
[1738931850779,0.0452,97953.0,97952.0,0.2041105]
[1738931851277,0.0452,97953.0,97952.0,0.2826105]
[1738931851772,0.0452,97953.0,97952.0,0.3234405]
[1738931852367,0.0452,97953.0,97952.0,0.79009485]
[1738931852569,0.2041032,97956.0,97952.0,0.58598435]
[1738931852771,0.2041032,97956.0,97953.0,0.2041074]
[1738931853076,0.0452,97957.0,97955.0,0.2041042]
[1738931853277,0.001,97953.0,97952.0,0.59034435]
[1738931853477,0.001,97953.0,97952.0,0.58898435]
[1738931853674,0.002,97953.0,97952.0,0.59198435]
[1738931854066,0.002,97953.0,97952.0,0.58598435]
[1738931854067,0.001,97953.0,97952.0,0.58598435]
[1738931854273,0.250304,97956.0,97953.0,0.003]
[1738931854669,0.250304,97956.0,97952.0,0.58742435]
[1738931854875,0.001,97953.0,97952.0,0.58898435]
[1738931855876,0.002,97953.0,97952.0,0.59098435]
[1738931856479,0.2061084,97953.0,97952.0,0.59098435]
[1738931856878,0.2051084,97953.0,97952.0,0.58798435]
[1738931857079,0.2051084,97953.0,97952.0,0.58998435]
[1738931857380,0.2051084,97953.0,97952.0,0.54918435]
[1738931857678,0.2051084,97953.0,97952.0,0.54718435]
[1738931857875,0.2061084,97953.0,97952.0,0.54918435]
[1738931858283,0.2051084,97953.0,97952.0,0.54718435]
[1738931858477,0.2061084,97953.0,97952.0,0.54918435]
[1738931858678,0.2061084,97953.0,97952.0,0.55734435]
[1738931860185,0.2061084,97953.0,97952.0,0.09069]
[1738931863173,0.2051084,97953.0,97952.0,0.08869]
[1738931863578,0.2061084,97953.0,97952.0,0.09069]
[1738931867079,0.2051084,97953.0,97952.0,0.09069]
[1738931867285,0.2061084,97953.0,97952.0,0.09069]
[1738931872295,0.002,97953.0,97952.0,0.09069]
[1738931872994,0.002,97953.0,97952.0,0.2948005]
[1738931877599,0.00015258,97960.0,97959.0,0.2040959]
[1738931877799,0.00015258,97960.0,97959.0,0.5648959]
[1738931878899,0.00115258,97960.0,97959.0,0.5668959]
[1738931879194,0.00115258,97960.0,97959.0,0.6077259]
[1738931880695,0.20524638,97960.0,97959.0,0.40363]
[1738931881099,0.20624638,97960.0,97959.0,0.40763]
[1738931881299,0.20624638,97960.0,97959.0,0.6117259]
[1738931882294,0.20624638,97960.0,97959.0,0.40763]
[1738931883399,0.20624638,97960.0,97959.0,0.4176045]
[1738931884101,0.20624638,97960.0,97959.0,0.40763]
[1738931885392,0.00215258,97960.0,97959.0,0.40763]
[1738931885589,0.00215258,97960.0,97959.0,0.6117259]
[1738931885792,0.00215258,97960.0,97959.0,0.6198859]
[1738931886689,0.00215258,97960.0,97959.0,0.6602859]
[1738931886892,0.204051,97981.0,97960.0,0.0510234]
[1738931887107,0.0452,97981.0,97975.0,0.3608]
[1738931887405,0.0452,97981.0,97976.0,0.0387]
[1738931887795,0.0452,97981.0,97979.0,0.2040541]
[1738931888098,0.0492,97981.0,97979.0,0.2040541]
[1738931888298,0.0532,97981.0,97979.0,0.2448741]
[1738931888707,0.008,97981.0,97979.0,0.2448741]
[1738931888894,0.004,97981.0,97980.0,0.0399]
[1738931889094,0.1,98000.0,97995.0,0.2040199]
[1738931889497,0.1,98000.0,97996.0,0.0373]
[1738931890404,0.1,98000.0,97998.0,0.2040135]
[1738931890704,0.107,98000.0,97998.0,0.2040135]
[1738931891701,0.115,98000.0,97998.0,0.2050135]
[1738931891898,0.112,98000.0,97998.0,0.001]
[1738931892300,0.112,98000.0,97998.0,0.0103203]
[1738931892505,0.108,98000.0,97997.0,0.0413]
[1738931893711,0.108,98000.0,97998.0,0.2040137]
[1738931893902,0.004,98000.0,97999.0,0.3608]
[1738931894215,0.3608,98042.0,97999.0,0.3608]
[1738931894216,0.3608,98050.0,98008.0,0.0509983]
[1738931894506,0.2039378,98035.0,98029.0,0.2039485]
[1738931894708,0.2039378,98035.0,98034.0,0.3608]
[1738931895299,0.10608385,98040.0,98030.0,0.3608]
[1738931895500,0.2039452,98032.0,98030.0,0.3608]
[1738931896202,0.3608,98038.0,98020.0,0.3608]
[1738931896395,0.3608,98028.0,98020.0,0.3608]
[1738931896601,0.0813,98027.0,98020.0,0.3608]
[1738931897008,0.2039639,98023.0,98020.0,0.3608]
[1738931897505,0.2039639,98023.0,98020.0,0.4026]
[1738931897808,0.0813,98027.0,98020.0,0.4026]
[1738931897809,0.203966,98022.0,98020.0,0.4026]
[1738931898404,0.203966,98022.0,98020.0,0.4106]
[1738931899209,0.204966,98022.0,98020.0,0.4106]
[1738931899603,0.001,98022.0,98020.0,0.4106]
[1738931900108,0.001,98022.0,98020.0,0.4186]
[1738931900302,0.001,98022.0,98021.0,0.3608]
[1738931900503,0.002,98022.0,98021.0,0.3608]
[1738931900704,0.002,98022.0,98021.0,0.4002]
[1738931901011,0.203934,98037.0,98021.0,0.4002]
[1738931901202,0.203934,98037.0,98035.0,0.3608]
[1738931901603,0.001,98022.0,98021.0,0.4092]
[1738931901808,0.002,98022.0,98021.0,0.4172]
[1738931902000,0.002,98022.0,98021.0,0.3778]
[1738931903202,0.001,98022.0,98021.0,0.3768]
[1738931903715,0.001,98022.0,98021.0,0.3698]
[1738931903919,0.002,98022.0,98021.0,0.3778]
[1738931904114,0.002,98022.0,98021.0,0.017]
[1738931904309,0.3608,98022.0,98020.0,0.0408]
[1738931904511,0.2039668,98021.0,98020.0,0.0408]
[1738931904710,0.19955783,98021.0,98020.0,0.0408]
[1738931905816,0.3628,98022.0,98014.0,0.00015304]
[1738931905817,0.2039793,98015.0,98014.0,0.00015304]
[1738931906706,0.001,98021.0,98014.0,0.00015304]
[1738931907113,0.001,98015.0,98014.0,0.01631304]
[1738931907417,0.2049793,98015.0,98014.0,0.01631304]
[1738931908710,0.2059793,98015.0,98014.0,0.02331304]
[1738931910819,0.2059793,98015.0,98014.0,0.02531304]
[1738931913424,0.002,98015.0,98014.0,0.02531304]
[1738931913620,0.04736,98015.0,98014.0,0.02531304]
[1738931914321,0.002,98015.0,98014.0,0.02531304]
[1738931914528,0.04736,98015.0,98014.0,0.02531304]
[1738931916020,0.2513392,98015.0,98014.0,0.02531304]
[1738931916928,0.2512992,98015.0,98014.0,0.02531304]
[1738931918532,0.26142786,98015.0,98014.0,0.02531304]
[1738931920028,0.2512992,98015.0,98014.0,0.02531304]
[1738931923921,0.2412992,98015.0,98014.0,0.02531304]
[1738931924124,0.6020992,98015.0,98014.0,0.02531304]
[1738931924524,0.04532,98015.0,98014.0,0.02531304]
[1738931924726,0.3608,98020.0,98014.0,0.02531304]
[1738931924919,0.04528,98019.0,98014.0,0.02531304]
[1738931925224,0.04532,98018.0,98014.0,0.02531304]
[1738931925429,0.04532,98018.0,98015.0,0.0412]
[1738931926731,0.40612,98018.0,98015.0,0.0412]
[1738931926930,0.40612,98018.0,98015.0,0.04936]
[1738931927632,0.40712,98018.0,98015.0,0.05836]
[1738931928518,0.40812,98018.0,98017.0,0.2039751]
[1738931928727,0.40812,98018.0,98015.0,0.06536]
[1738931928926,0.40712,98018.0,98015.0,0.05836]
[1738931929132,0.40812,98018.0,98015.0,0.06736]
[1738931929322,0.40812,98018.0,98015.0,0.05836]
[1738931929526,0.04732,98018.0,98017.0,0.009]
[1738931930034,0.04632,98018.0,98016.0,0.2039772]
[1738931930234,0.04732,98018.0,98016.0,0.2039772]
[1738931930627,0.04732,98018.0,98017.0,0.009]
[1738931932032,0.04732,98018.0,98017.0,0.018]
[1738931932532,0.04732,98018.0,98017.0,0.009]
[1738931933122,0.04732,98018.0,98017.0,0.2129751]
[1738931933327,0.04732,98018.0,98017.0,0.2219751]
[1738931933528,0.04732,98018.0,98017.0,0.2627751]
[1738931935536,0.2512931,98018.0,98017.0,0.0588]
[1738931938532,0.2512931,98018.0,98017.0,0.30184713]
[1738931939124,0.6120931,98018.0,98017.0,0.30184713]
[1738931941323,0.93022,98018.0,98008.0,0.30477494]
[1738931941522,0.3608,98009.0,98005.0,0.30477494]
[1738931941728,0.203998,98006.0,98005.0,0.30477494]
[1738931941927,0.0424,98008.0,98005.0,0.30477494]
[1738931942140,0.249158,98006.0,98005.0,0.30477494]
[1738931943336,0.258158,98006.0,98005.0,0.30577494]
[1738931943724,0.05416,98006.0,98005.0,0.001]
[1738931944539,0.06316,98006.0,98005.0,0.002]
[1738931944941,0.05416,98006.0,98005.0,0.001]
[1738931945241,0.2040001,98005.0,98004.0,0.00816]
[1738931946243,0.04716,98006.0,98004.0,0.00816]
[1738931946443,0.001,98005.0,98004.0,0.00816]
[1738931947241,0.04636,98005.0,98004.0,0.2121622]
[1738931947533,0.001,98005.0,98004.0,0.2121622]
[1738931947737,0.2050001,98005.0,98004.0,0.00816]
[1738931947940,0.2060001,98005.0,98004.0,0.01716]
[1738931948139,0.2050001,98005.0,98004.0,0.02216]
[1738931949047,0.2060001,98005.0,98004.0,0.02216]
[1738931949439,0.002,98005.0,98004.0,0.2261622]
[1738931949648,0.04728,98005.0,98004.0,0.02216]
[1738931950847,0.04728,98005.0,98004.0,0.20464236]
[1738931952747,0.04744,98005.0,98004.0,0.20464236]
[1738931953349,0.04744,98005.0,98004.0,0.02216]
[1738931954550,0.04744,98005.0,98004.0,0.2261622]
[1738931956151,0.04744,98005.0,98004.0,0.02216]
[1738931956559,0.002,98005.0,98004.0,0.02216]
[1738931956750,0.04736,98005.0,98004.0,0.02216]
[1738931957466,0.2513601,98005.0,98004.0,0.02216]
[1738931958268,0.25141198,98005.0,98004.0,0.02216]
[1738931958668,0.04741188,98005.0,98004.0,0.02216]
[1738931962170,0.25141198,98005.0,98004.0,0.02216]
[1738931969369,0.29451198,98005.0,98004.0,0.02216]
[1738931970773,0.29451198,98005.0,97998.0,0.18266826]
[1738931970774,0.09051188,98005.0,97998.0,0.18266826]
[1738931970974,0.0403,98004.0,97987.0,0.30477494]
[1738931971274,0.0403,98004.0,97977.0,0.0395]
[1738931971275,0.3608,97988.0,97980.0,0.30477494]
[1738931971577,0.204044,97984.0,97980.0,0.30477494]
[1738931971778,0.04532,97987.0,97980.0,0.30477494]
[1738931971779,0.20405,97981.0,97980.0,0.30477494]
[1738931971974,0.20405,97981.0,97980.0,0.31293494]
[1738931972376,0.04532,97987.0,97980.0,0.31293494]
[1738931972377,0.204041,97986.0,97980.0,0.31293494]
[1738931972673,0.04532,97987.0,97980.0,0.31293494]
[1738931973081,0.2040497,97982.0,97980.0,0.00816]
[1738931973772,0.2130397,97986.0,97980.0,0.00816]
[1738931974074,0.009,97986.0,97980.0,0.00816]
[1738931974273,0.009,97982.0,97980.0,0.00816]
[1738931974471,0.018,97982.0,97980.0,0.00816]
[1738931975870,0.0452,97981.0,97980.0,0.00816]
[1738931976071,0.2492501,97981.0,97980.0,0.00816]
[1738931977572,0.2582501,97981.0,97980.0,0.00816]
[1738931978882,0.2672501,97981.0,97980.0,0.00816]
[1738931989789,0.27760796,97981.0,97980.0,0.00816]
[1738931992993,0.2672501,97981.0,97980.0,0.00816]
[1738931993188,0.0632,97981.0,97980.0,0.2122121]
[1738931996092,0.018,97981.0,97980.0,0.2122121]
[1738931996293,0.0632,97981.0,97980.0,0.2122121]
[1738932000891,0.0632,97981.0,97980.0,0.2139721]
[1738932002091,0.0632,97981.0,97980.0,0.68050073]
[1738932002695,0.0452,97983.0,97980.0,0.47644863]
[1738932002899,0.0452,97983.0,97982.0,0.2040479]
[1738932003396,0.0452,97983.0,97980.0,0.46828863]
[1738932003695,0.0452,97983.0,97982.0,0.2040479]
[1738932003883,0.0542,97983.0,97982.0,0.2040479]
[1738932004394,0.009,97983.0,97982.0,0.2122079]
[1738932004893,0.0452,97985.0,97984.0,0.2040438]
[1738932006898,0.0632,97985.0,97984.0,0.2060438]
[1738932007096,0.2672417,97985.0,97984.0,0.2060438]
[1738932008093,0.0632,97985.0,97984.0,0.2060438]
[1738932008893,0.0632,97985.0,97984.0,0.002]
[1738932009091,0.2672417,97985.0,97984.0,0.002]
[1738932011189,0.2672417,97985.0,97984.0,0.00422]
[1738932011898,0.018,97985.0,97984.0,0.00422]
[1738932012098,0.0632,97985.0,97984.0,0.2082638]
[1738932013000,0.2672417,97985.0,97984.0,0.00422]
[1738932018902,0.0632,97985.0,97984.0,0.00422]
[1738932020396,0.0632,97985.0,97984.0,0.2082638]
[1738932026415,0.2672417,97985.0,97984.0,0.00422]
[1738932027309,0.2672417,97985.0,97984.0,1e-08]
[1738932027517,0.0632,97985.0,97982.0,0.00816]
[1738932027809,0.2040479,97982.0,97981.0,0.24372992]
[1738932028822,0.2040479,97982.0,97981.0,0.25188992]
[1738932029017,0.2130479,97982.0,97981.0,0.25288992]
[1738932029531,0.2220479,97982.0,97981.0,0.25288992]
[1738932030026,0.2220479,97982.0,97981.0,0.00916]
[1738932030234,0.2672079,97982.0,97981.0,0.00916]
[1738932030826,0.2592079,97982.0,97981.0,0.00816]
[1738932031329,0.2512079,97982.0,97981.0,0.00816]
[1738932031829,0.2502079,97982.0,97981.0,0.00816]
[1738932032127,0.2512079,97982.0,97981.0,0.00816]
[1738932034626,0.26132334,97982.0,97981.0,0.00816]
[1738932036427,0.26136708,97982.0,97981.0,0.00816]
[1738932039834,0.62216708,97982.0,97981.0,0.00816]
[1738932049439,0.41811918,97982.0,97971.0,0.00015304]
[1738932049640,0.5648688,97972.0,97971.0,0.00015304]
[1738932049937,0.5648688,97972.0,97971.0,0.00146304]
[1738932050143,0.6100288,97972.0,97971.0,0.00146304]
[1738932051237,0.6150288,97972.0,97971.0,0.00146304]
[1738932051437,0.6210288,97972.0,97971.0,0.00146304]